Cogmind - Beta 17 @@@ ROGUE MODE // 2026.06.28 @ 14:48:28 Player: APerTAS Result: Destroyed by G-34 Mercenary with Small Laser Performance ------------- Evolutions (0) 0 Regions Visited (1) 200 Robots Destroyed (14) 70 Value Destroyed (240) 240 Prototype IDs (0) 0 Alien Tech Used (0) 0 Bonus (0) 0 TOTAL SCORE: 510 Bonus ------- None Cogmind --------- Core Integrity 0/250 Matter 300/300 Energy 100/100 System Corruption 2% Temperature Cool (6) Movement Core (50) Location -10/Materials Parts ------- > --- POWER (1) -------- (None) > --- PROPULSION (2) --- (None) > --- UTILITY (2) ------ (None) > --- WEAPON (2) ------- Mining Claw > --- INVENTORY (5) ---- Improved Ion Engine Improved Ion Engine Wheel Seismic Detector Peak State ------------ > --- POWER ------------ Improved Ion Engine > --- PROPULSION ------- Light Treads Light Treads > --- UTILITY ---------- Small Storage Unit Improved Terrain Scanner > --- WEAPON ----------- Assault Rifle Light Assault Rifle > --- INVENTORY -------- Improved Ion Engine Improved Ion Engine Wheel Wheel Seismic Detector Small Laser Grenade Launcher Mining Laser [Rating: 11] Favorites ----------- Power Ion Engine Engine Ion Engine Propulsion Light Treads Treads Light Treads Utility Small Storage Unit Device Improved Terrain Scanner Storage Small Storage Unit Weapon Light Assault Rifle Energy Gun Small Laser Ballistic Gun Light Assault Rifle Slashing Weapon Mining Claw Build | -11 -10 ------- Run | Yrd Mat Slots Evolved . | . . Power . | . . Propulsion . | . . Utility . | . . Weapon . | . . Parts Attached 10 | 7 3 Power 2 | 1 1 Engine 2 | 1 1 Core . | . . Reactor . | . . Propulsion 2 | 2 . Treads 2 | 2 . Leg . | . . Wheel . | . . Hover . | . . Flight . | . . Utility 2 | 2 . Device 1 | 1 . Storage 1 | 1 . Processor . | . . Hackware . | . . Protection . | . . Artifact . | . . Weapon 4 | 2 2 Energy Gun 1 | . 1 Energy Cannon . | . . Ballistic Gun 2 | 2 . Ballistic Cannon . | . . Launcher . | . . Special Weapon . | . . Impact Weapon . | . . Slashing Weapon 1 | . 1 Piercing Weapon . | . . Special Melee Weapon . | . . Unidentified Prototypes . | . . Parts Lost 3 | . 3 Power . | . . Propulsion 1 | . 1 Utility 1 | . 1 Weapon 1 | . 1 Highest Loss Streak 3 | . 3 To Critical Strikes . | . . Average Backups 5 | 4 7 Power 1 | 1 2 Propulsion 1 | 1 1 Utility . | . 1 Weapon 1 | . 2 Tool/Special . | . . Unused Backups 10 | 1 9 Power 4 | . 4 Propulsion 3 | 1 2 Utility 1 | . 1 Weapon 2 | . 2 Tool/Special . | . . Average Slot Usage (%) 87 | . 87 Engine 12 | . 12 Treads 23 | . 23 Device 11 | . 11 Storage 12 | . 12 Energy Gun 1 | . 1 Ballistic Gun 23 | . 23 Slashing Weapon 1 | . 1 Peak Build Rating 11 | 9 11 Average Rating 7 | 5 9 On Entrance 4 | . 9 Avg Prop Armor Cover (%) . | . . Naked Turns 12 | . 12 Heaviest Build 16 | 14 16 Greatest Support 40 | 40 40 Greatest Overweight (x) . | . . Average Overweight (x) . | . . Largest Inventory Capacity 8 | 8 8 Average Capacity 7 | 7 7 Most Carried 8 | 7 8 Average Carried 5 | 4 7 Final Capacity 8 | 8 5 Final Carried 6 | 6 4 Class Distribution -------------------- 100% | Mutant Dominant Class ---------------- Mutant | -10/Materials Resources | -11 -10 ----------- Run | Yrd Mat Matter Collected 414 | 370 44 Remotely . | . . Salvage Created 434 | 186 248 Parts 29 | 16 13 Haulers Intercepted . | . . Recyclers Shooed . | . . Parts Field Recycled . | . . Retrieved Matter . | . . Parts Self-Destructed . | . . Prevented . | . . Parts Restored . | . . Kills | -11 -10 ------- Run | Yrd Mat Combat Hostiles Destroyed 5 | . 5 Melee 1 | . 1 Guns 4 | . 4 Classes Destroyed 4 | 3 1 Worker 3 | 2 1 Tunneler 5 | 5 . Recycler 1 | 1 . Grunt 5 | . 5 Best Kill Streak 3 | 3 2 Combat Bots Only 2 | . 2 Max Kills in Single Turn 1 | 1 1 Gunslinging . | . . Exploded . | . . Melee 1 | . 1 Uniques/NPCs Destroyed . | . . Combat | -11 -10 -------- Run | Yrd Mat Hostile Shots Fired 74 | . 74 Missed 18 | . 18 Hits 56 | . 56 Projectile 56 | . 56 Damage Taken 725 | . 725 Core 259 | . 259 Absorbed by Shields . | . . Core Remaining (%) 100 | 100 . Volleys Fired 47 | 25 22 Largest 2 | 2 2 Hottest 60 | 40 60 Shots Fired 94 | 50 44 Gun 94 | 50 44 Cannon . | . . Launcher . | . . Special . | . . Kinetic 84 | 50 34 Thermal 10 | . 10 Explosive . | . . Electromagnetic . | . . Robot Hit Streak 8 | 7 8 Robot Miss Streak 3 | 3 2 Penetration Max . | . . Secondary Targets 2 | . 2 Max Gunslinging Chain 1 | . 1 Shots Hit Robots 69 | 31 38 Core Hits 27 | 13 14 Critical Kills . | . . Critical Parts Destroyed . | . . Critical Strikes . | . . Melee Attacks 10 | . 10 Impact . | . . Slashing 10 | . 10 Piercing . | . . Sneak Attacks 1 | . 1 Combat Hostiles . | . . Follow-up Attacks . | . . Damage Inflicted 869 | 328 541 Guns 670 | 328 342 Cannons . | . . Explosions . | . . Melee 179 | . 179 Ramming 20 | . 20 Kinetic 585 | 328 257 Thermal 85 | . 85 Explosive . | . . Electromagnetic . | . . Impact . | . . Slashing 179 | . 179 Piercing . | . . Highest Corruption 2 | . 2 Average Corruption 2 | . 2 Corruption Purged . | . . Corruption Blocked . | . . Overload Shots . | . . Overflow Damage 12 | . 12 Projectiles . | . . Explosions . | . . Melee 12 | . 12 Knockbacks 1 | . 1 Impact 1 | . 1 Kinetic . | . . Secondary . | . . Self-Inflicted Damage 8 | . 8 Shots . | . . Rammed 7 | . 7 Targets Rammed 7 | . 7 Kicked . | . . Crushed . | . . Highest Temperature 221 | . 221 Average Temperature 72 | . 72 Received Heat Transfer 402 | . 402 Siege Activations . | . . Martial Activations . | . . Shielding Activations . | . . Robots Disrupted . | . . Combat Hostiles . | . . Robots Corrupted . | . . Combat Hostiles . | . . Parts Fried . | . . Impact Corruptions . | . . Robots Melted . | . . Combat Hostiles . | . . Parts Melted . | . . Heat Transferred 200 | . 200 Parts Sabotaged . | . . Parts Stolen . | . . Parts Stripped . | . . Power Chain Reactions . | . . Alert | -11 -10 ------- Run | Yrd Mat Maximum Alert Level . | . . Low Security (%) 100 | 100 100 Level 1 . | . . Level 2 . | . . Level 3 . | . . Level 4 . | . . Level 5 . | . . High Security . | . . Max Security . | . . Peak Influence 50 | 5 50 Initial . | . . Average 6 | . 12 Influence Increases 180 | 40 140 Destroy 0b10 Robot/C 100 | . 100 Destroy 0b10 Robot/NC 45 | 40 5 Destroy Leader 30 | . 30 Successful Hack 5 | . 5 Influence Decreases 145 | 40 105 Time Decay 115 | 40 75 Lost Part 30 | . 30 Squads Dispatched 1 | . 1 Investigation . | . . Extermination . | . . Reinforcement 1 | . 1 Assault . | . . Garrison . | . . Intercept . | . . Searches Triggered . | . . Construction Impeded . | . . Haulers Reinforced . | . . Active Scanning Responses . | . . Cargo Convoy Interrupts . | . . Stealth | -11 -10 --------- Run | Yrd Mat Distress Signals . | . . Communications Jammed . | . . Distress Signals . | . . Times Spotted 10 | . 10 Peak Tracking Total 4 | . 4 Tactical Retreats . | . . Traps | -11 -10 ------- Run | Yrd Mat Traps Triggered . | . . Indirectly . | . . Trap Hack Attempts . | . . Triggered . | . . Disarmed . | . . Reprogrammed . | . . Reused . | . . Traps Extracted . | . . Installed . | . . Triggered . | . . Machines | -11 -10 ---------- Run | Yrd Mat Machines Disabled . | . . Max in Single Turn . | . . Machines Repaired . | . . Machines Dismantled . | . . Machines Sabotaged . | . . Overloaded Fab Kills . | . . Hacking | -11 -10 --------- Run | Yrd Mat Machines Accessed 3 | . 3 Terminals 3 | . 3 Fabricators . | . . Repair Stations . | . . Recycling Units . | . . Scanalyzers . | . . Garrison Access . | . . Total Hacks 9 | . 9 Successful 3 | . 3 Failed 6 | . 6 Catastrophic 1 | . 1 Database Lockouts . | . . Manual 6 | . 6 Terminals 9 | . 9 Fabricators . | . . Repair Stations . | . . Recycling Units . | . . Scanalyzers . | . . Garrison Access . | . . Terminal Hacks 1 | . 1 Hauler Manifests 1 | . 1 Fabricator Hacks . | . . Repair Station Hacks . | . . Recycling Unit Hacks . | . . Scanalyzer . | . . Garrison Access Hacks . | . . Unauthorized Hacks 2 | . 2 Terminals 2 | . 2 Botnet 2 | . 2 Fabricators . | . . Repair Stations . | . . Recycling Units . | . . Scanalyzers . | . . Garrison Access . | . . Data Cores Recovered . | . . Used . | . . Hacking Detections 3 | . 3 Full Trace Events . | . . Feedback Events . | . . Feedback Blocked . | . . Robot Schematics Acquired . | . . Robots Built . | . . Authchips . | . . Time . | . . Total Robot Build Rating . | . . Part Schematics Acquired . | . . Parts Built . | . . Authchips . | . . Time . | . . Total Part Build Rating . | . . Part Studies Acquired . | . . Parts Repaired . | . . Time . | . . Parts Recycled . | . . Recycled Matter . | . . Retrieved Matter . | . . Retrieved Components . | . . Parts Scanalyzed . | . . Part Schematics Acquired . | . . Parts Damaged . | . . Bothacking | -11 -10 ------------ Run | Yrd Mat Used RIF Installer . | . . Robots Hacked . | . . Non-combat . | . . Combat . | . . Robot Hacks Applied . | . . Relay Couplers Released . | . . Fabnet Peak Effective % . | . . Robots Rewired . | . . Allies Hacked . | . . Hacks Repelled . | . . Allies | -11 -10 -------- Run | Yrd Mat Total Allies . | . . Largest Group . | . . Highest-Rated Group . | . . Highest-Rated Ally . | . . Total Orders . | . . Ally Attacks . | . . Total Damage . | . . Kills . | . . Allies Corrupted . | . . Allies Melted . | . . Intel | -11 -10 ------- Run | Yrd Mat Active Infowar (turns) 312 | 11 301 Terrain 312 | 11 301 Robot Analysis Total . | . . Derelict Logs Recovered . | . . Drone Launches . | . . Drone Recoveries . | . . Exploration | -11 -10 ------------- Run | Yrd Mat Turns Passed 684 | 321 363 Spaces Moved 307 | 138 169 Core 28 | 3 25 Treads 279 | 135 144 Legs . | . . Wheels . | . . Hover . | . . Flight . | . . Fastest Speed 50 | 50 50 Average Speed 149 | 157 143 Slowest Speed 160 | 160 160 Overloaded Moves . | . . Propulsion Burnouts . | . . Robots Hopped . | . . Potential Cave-ins . | . . Cave-ins Triggered . | . . Exploration Rate (%) 19 | 8 31 Regions Visited 1 Branch Regions . Pre-discovered Areas . | . . Known Exits Taken . | . . Unknown Exits Taken 1 | 1 . Scrap Searched . | . . Spaces Dug . | . . Terrain Destroyed . | . . Melee . | . . Projectile . | . . AOE . | . . Terrain Rammed . | . . Walls Destroyed . | . . Machines Disabled . | . . Actions | -11 -10 --------- Run | Yrd Mat Total 429 | 194 235 Wait 32 | 17 15 Move 306 | 137 169 Hop . | . . Pick Up 12 | 7 5 Fast Attach 7 | 7 . Attach 2 | . 2 Detach . | . . Swap 1 | . 1 Drop 5 | 1 4 Fire 47 | 25 22 Melee 10 | . 10 Ram 7 | . 7 Kick . | . . Crush . | . . Escape Stasis . | . . Rewire . | . . Trap . | . . Miscellaneous . | . . Route ------- -11/Scrapyard -10/Materials History --------- Turn | Location | Event 11 | -11/Scrapyard | Discovered new exit (range 16) 322 | -11/Scrapyard | Entered Materials 332 | -10/Materials | Build established: Mutant 636 | -10/Materials | Released all parts (5) 650 | -10/Materials | Core integrity fell below 50% 660 | -10/Materials | Lost 3 parts (1n1u1w) 678 | -10/Materials | Core integrity fell below 20% 685 | -10/Materials | Destroyed by G-34 Mercenary with Small Laser Last Messages --------------- 00647_ K-01 Serf cleans the Matter Filter. 00649_ Acquired 2 matter. 00651_ R-06 Scavenger collects Sml. Laser. 00651_ K-01 Serf collects debris. 00654_ R-06 Scavenger collects Lgt. Assault Rifle. 00657_ K-01 Serf collects debris. 00658_ R-06 Scavenger collects Lgt. Treads. 00658_ K-01 Serf collects debris. 00661_ R-06 Scavenger collects Imp. Ion Engine. 00661_ K-01 Serf collects debris. 00662_ G-34 Mercenary destroyed. 00665_ K-01 Serf collects debris. 00666_ R-06 Scavenger collects Grenade Launcher. 00667_ Sneak attack on K-01 Serf. 00667_ Destroyed Lgt. Ion Engine. 00668_ K-01 Serf collects debris. 00669_ R-06 Scavenger collects Wheel. 00669_ K-01 Serf collects debris. 00674_ K-01 Serf destroyed. 00677_ Acquired 8 matter. Map ----- +----------------------------------------------------+ | ###?#?????????#??????????????????????????????????? | | ???????? ????????????????????????????? ??????????? | | ????????? ???????????????????????????????????????? | | ?#?#??????????????????????????????????? ?????????? | | ???????????????????????????????? ????????????????? | | ???????"??????????????????#??????????#?? ????????? | | ######? ????????????????????????????????????????? | | # #???????????????? ???#???????????#?????#????? | | ###########?????????????????????????????????? | | ??????????????????????????? | | # ########## ? ??????????????#?????????? | | ## ##????#?#????????????????????????? #?????????? | | # #?????#???????????????#?????????? #?????????? | | # #??????????????? ??????????????# #?????????? | | # ##??#?????#???? ???############# #?????????? | | # #???#??????????????# #####?????? | | # #?????##?????"""" # !! =#??? | | # ##????#??????"""" + % """ #??? | | # #???#????????"""" #^ ! "T" """ #??? | | ## #####?#??????""" ? # *% """?????? | | ##?????? ?? ?# =%= ! ""??????? | | #?###?? ?????# ![ ""??????? | | #???#??######### ?????? | | ##### #??????# ? ???? | | ### ##?????# ????? | | #?# #??????# "" @g ?????? | | #?# #??#???# "T g """"""" #####+????? | | ##?# ##???#?# "" """"""" #? ???????? | | ###?# #????#?# """"""" #??? ?????? | | #??## ##?###?# %% """"??? #?????????? | | ???# ###T### """"??? #?????????? | | ???# ?? ???????????? | | ???# ??????????????? | | ???# #### ### ???????????????? | | ???# ####### #?###+##?? ???????????????? | | ???#######?????### ####?????????? ???????????????? | | ??#????????????#?# #?????????????????????????????? | | ???###???????????# #?????? ??????????????????????? | | ??????#??????????#+#?????????????????????????????? | | ????????????????? ?????????????????????????????? | | ????????????????? ?????????????????????????????? | | ???#?????????????"" ?????????????????????????????? | | ?????????????????"" ???????"?????????????????????? | | ??????????????????? ?????????????????????????????? | | ?????????????????????????????????????????????????? | | ?????????????????????????????????????????????????? | | ?????????????????????????????????????????????????? | | ?????????????????????????????????????????????????? | | ?????????????????????????????????????????????????? | | ?????????????????????????????????????????????????? | +----------------------------------------------------+ Best States ------------- Heat Dissipation 25 Energy Generation 12 Energy Capacity 265 Matter Stores 300 Matter Capacity 300 Sight Range 16 Terrain Scan Range 16 Terrain Scan Density 10 Evasion (%) 50 Recoil Reduction 2 Item Schematics ----------------- None Robot Schematics ------------------ None Fabricated ------------ Nothing Repaired ---------- Nothing Studied --------- None Alien Tech Used ----------------- None Achievements -------------- None Challenges ------------ None Game ------ Seed AssemblyFusionDrive Manual? 0 Play Time 00:07:34 Cumulative 67.5 hours Start 2026.06.28 @ 14:43:49 End 2026.06.28 @ 14:48:28 Sessions 1 Manual Loads 0 Difficulty Rogue Special Mode None Game No. 211 Rogue 211 Adventurer 0 Explorer 0 Win Type - Total 0 Types 0/0/0/0/0/0/0/0/0/0 Lore% 63 Gallery% 37 Achievement% 36 Wizard Run 0 Options --------- Layout 0 ASCII 0 Keyboard 1 Movement Arrows Keybinds 0 Fullscreen 1 Font 24/Terminus Map View 64x52 Zoom Use 0% Tactical HUD 1 Map Filters NONE Filters NONE Steam 1 RUN: 21929680-804f-4d1e-99a7-6e7d604743a4